Cogmind - Beta 16.1 *** ADVENTURER MODE // 2026.02.22 @ 11:05:33 Player: 15K-U-RD5 Result: Self-destructed Performance ------------- Evolutions (2) 1000 Regions Visited (4) 800 Robots Destroyed (18) 90 Value Destroyed (247) 247 Prototype IDs (0) 0 Alien Tech Used (0) 0 Bonus (-23) -23 TOTAL SCORE: 2114 Bonus ------- Friendly Fire -23 Cogmind --------- Core Integrity 511/550 Matter 273/300 Energy 250/250 System Corruption 0% Temperature Cool (0) Movement Treading (160) Location -8/Materials Parts ------- > --- POWER (2) -------- Ion Engine > --- PROPULSION (2) --- Light Treads Light Treads > --- UTILITY (4) ------ Improved Terrain Scanner Core Shielding Tractor Beam > --- WEAPON (3) ------- (None) > --- INVENTORY (5) ---- Particle Charger Peak State ------------ > --- POWER ------------ Improved Ion Engine > --- PROPULSION ------- Light Treads Light Treads > --- UTILITY ---------- Improved Terrain Scanner Core Shielding > --- WEAPON ----------- Subdweller Machine Gun Grenade Launcher > --- INVENTORY -------- Ion Engine Light Treads Light Treads Tractor Beam Light Assault Rifle [Rating: 11] Favorites ----------- Power Ion Engine Engine Ion Engine Propulsion Light Treads Treads Light Treads Utility Improved Terrain Scanner Device Improved Terrain Scanner Protection Core Shielding Weapon Light Assault Rifle Energy Gun Medium Laser Ballistic Gun Light Assault Rifle Launcher Grenade Launcher Build | -11 -10 -10 -10 -8 ------- Run | Yrd Mat Min Sub Mat Slots Evolved 4 | . . . . 4 Power 1 | . . . . 1 Propulsion . | . . . . . Utility 2 | . . . . 2 Weapon 1 | . . . . 1 Parts Attached 16 | 7 . 3 3 3 Power 3 | 1 . 1 . 1 Engine 3 | 1 . 1 . 1 Core . | . . . . . Reactor . | . . . . . Propulsion 6 | 2 . 1 1 2 Treads 6 | 2 . 1 1 2 Leg . | . . . . . Wheel . | . . . . . Hover . | . . . . . Flight . | . . . . . Utility 3 | 2 . . 1 . Device 2 | 2 . . . . Storage . | . . . . . Processor . | . . . . . Hackware . | . . . . . Protection 1 | . . . 1 . Artifact . | . . . . . Weapon 4 | 2 . 1 1 . Energy Gun 1 | 1 . . . . Energy Cannon . | . . . . . Ballistic Gun 2 | 1 . . 1 . Ballistic Cannon . | . . . . . Launcher 1 | . . 1 . . Special Weapon . | . . . . . Impact Weapon . | . . . . . Slashing Weapon . | . . . . . Piercing Weapon . | . . . . . Special Melee Weapon . | . . . . . Unidentified Prototypes . | . . . . . Parts Lost 4 | . . . 3 1 Power 1 | . . . 1 . Propulsion 1 | . . . 1 . Utility . | . . . . . Weapon 2 | . . . 1 1 Highest Loss Streak 2 | . . . 2 1 To Critical Strikes . | . . . . . Average Backups 2 | . 1 3 4 . Power . | . 1 1 1 . Propulsion 1 | . . 2 2 . Utility . | . . . 1 . Weapon . | . . . . . Tool/Special . | . . . . . Unused Backups 1 | . . . . 1 Power . | . . . . . Propulsion . | . . . . . Utility 1 | . . . . 1 Weapon . | . . . . . Tool/Special . | . . . . . Average Slot Usage (%) 91 | . 100 100 88 58 Engine 11 | . 14 14 9 8 Treads 26 | . 28 28 25 16 Device 23 | . 28 28 17 17 Protection 4 | . . . 10 9 Energy Gun 5 | . 14 4 . . Ballistic Gun 13 | . 14 14 14 8 Launcher 5 | . . 9 9 . Peak Build Rating 11 | 9 9 10 11 10 Average Rating 8 | 5 9 9 9 9 On Entrance 7 | . 9 9 10 7 Avg Prop Armor Cover (%) . | . . . . . Naked Turns . | . . . . . Heaviest Build 16 | 10 10 13 16 12 Greatest Support 40 | 40 40 40 40 40 Greatest Overweight (x) . | . . . . . Average Overweight (x) . | . . . . . Largest Inventory Capacity 5 | 5 5 5 5 5 Average Capacity 5 | 5 5 5 5 5 Most Carried 5 | 3 3 5 5 4 Average Carried 2 | 1 1 3 4 . Final Capacity 5 | 5 5 5 5 5 Final Carried 5 | 1 3 5 4 1 Class Distribution -------------------- 84% | Mutant 15% | Scavenger-Mutant Dominant Class ---------------- Mutant | -10/Materials Mutant | -10/Mines Mutant | -10/Subcaves Scavenger-Mutant | -8/Materials Resources | -11 -10 -10 -10 -8 ----------- Run | Yrd Mat Min Sub Mat Matter Collected 426 | 285 22 45 74 . Remotely 198 | 131 22 45 . . Salvage Created 445 | 193 129 28 95 . Parts 31 | 10 11 5 5 . Haulers Intercepted 1 | . 1 . . . Recyclers Shooed 1 | . 1 . . . Parts Field Recycled . | . . . . . Retrieved Matter . | . . . . . Parts Self-Destructed 8 | . . . 8 . Prevented . | . . . . . Parts Restored . | . . . . . Kills | -11 -10 -10 -10 -8 ------- Run | Yrd Mat Min Sub Mat Combat Hostiles Destroyed 8 | . 3 2 3 . Melee 1 | . . . 1 . Guns 6 | . 3 2 1 . AOE 1 | . . . 1 . Classes Destroyed 8 | 3 3 . 2 . Worker 2 | 2 . . . . Tunneler 4 | 3 1 . . . Hauler 1 | . 1 . . . Recycler 1 | 1 . . . . Watcher 2 | . 2 . . . Swarmer 5 | . 3 2 . . Grunt 1 | . . . 1 . Subdweller 2 | . . . 2 . Best Kill Streak 4 | 2 4 2 1 . Combat Bots Only 3 | . 3 2 1 . Max Kills in Single Turn 2 | 2 1 1 1 . Gunslinging . | . . . . . Exploded 1 | . . . 1 . Melee 1 | . . . 1 . Uniques/NPCs Destroyed . | . . . . . Combat | -11 -10 -10 -10 -8 -------- Run | Yrd Mat Min Sub Mat Hostile Shots Fired 114 | . 30 22 36 26 Missed 33 | . 7 7 11 8 Hits 81 | . 23 15 25 18 Projectile 81 | . 23 15 25 18 Critical Strikes 2 | . 1 . 1 . Actively Blocked 2 | . . . 2 . Damage Taken 936 | . 148 105 476 207 Core 176 | . 56 8 73 39 Absorbed by Shields . | . . . . . Redirected to Shielding 23 | . . . 15 8 Ignored by Resistances 248 | . 49 34 105 60 Core Remaining (%) 72 | 100 . . 45 . Volleys Fired 50 | 15 22 5 8 . Largest 2 | 2 2 2 2 . Hottest 70 | 70 70 70 60 . Shots Fired 95 | 30 44 10 11 . Gun 90 | 30 44 9 7 . Cannon . | . . . . . Launcher 5 | . . 1 4 . Special . | . . . . . Kinetic 49 | 15 22 5 7 . Thermal 41 | 15 22 4 . . Explosive 5 | . . 1 4 . Electromagnetic . | . . . . . Robot Hit Streak 14 | 9 11 14 12 . Robot Miss Streak 4 | 1 4 1 1 . Penetration Max . | . . . . . Secondary Targets 2 | . 1 1 . . Max Gunslinging Chain 1 | . 1 1 . . Shots Hit Robots 61 | 18 28 8 7 . Core Hits 32 | 8 15 4 3 2 Critical Kills . | . . . . . Critical Parts Destroyed . | . . . . . Critical Strikes 2 | . 2 . . . Burn 2 | . 2 . . . Melee Attacks . | . . . . . Impact . | . . . . . Slashing . | . . . . . Piercing . | . . . . . Sneak Attacks . | . . . . . Combat Hostiles . | . . . . . Follow-up Attacks . | . . . . . Damage Inflicted 826 | 203 284 138 193 8 Guns 639 | 203 284 78 74 . Cannons . | . . . . . Explosions 179 | . . 60 119 . Melee . | . . . . . Ramming 8 | . . . . 8 Kinetic 302 | 78 124 26 74 . Thermal 337 | 125 160 52 . . Explosive 179 | . . 60 119 . Electromagnetic . | . . . . . Impact . | . . . . . Slashing . | . . . . . Piercing . | . . . . . Highest Corruption 1 | . 1 1 1 . Average Corruption 1 | . 1 1 1 . Corruption Purged . | . . . . . Corruption Blocked . | . . . . . Effects 10 | . 1 3 6 . Message Errors 3 | . 1 1 1 . Matter Fused 2 | . . . 2 . Heat Flow Errors 1 | . . 1 . . Data Loss (minor) 4 | . . 1 3 . Overload Shots . | . . . . . Overflow Damage . | . . . . . Projectiles . | . . . . . Explosions . | . . . . . Melee . | . . . . . Knockbacks . | . . . . . Impact . | . . . . . Kinetic . | . . . . . Secondary . | . . . . . Self-Inflicted Damage 18 | . . . 18 . Shots 1 | . . . 1 . Rammed 4 | . . . . 4 Targets Rammed 5 | . . . 1 4 Kicked . | . . . . . Crushed 1 | . . . 1 . Highest Temperature 160 | 94 160 131 . . Average Temperature 50 | 37 59 48 . . Received Heat Transfer 195 | . . 18 168 9 Siege Activations . | . . . . . Martial Activations . | . . . . . Shielding Activations . | . . . . . Robots Disrupted . | . . . . . Combat Hostiles . | . . . . . Robots Corrupted . | . . . . . Combat Hostiles . | . . . . . Parts Fried . | . . . . . Impact Corruptions . | . . . . . Robots Melted . | . . . . . Combat Hostiles . | . . . . . Parts Melted 2 | . 2 . . . Heat Transferred 1147 | 370 629 148 . . Parts Sabotaged . | . . . . . Parts Stolen . | . . . . . Parts Stripped . | . . . . . Power Chain Reactions . | . . . . . Alert | -11 -10 -10 -10 -8 ------- Run | Yrd Mat Min Sub Mat Maximum Alert Level . | . . . . . Low Security (%) 100 | 100 100 100 . 100 Level 1 . | . . . . . Level 2 . | . . . . . Level 3 . | . . . . . Level 4 . | . . . . . Level 5 . | . . . . . High Security . | . . . . . Max Security . | . . . . . Peak Influence 69 | 10 69 49 . 4 Initial 19 | . . 19 . 4 Average 10 | 1 12 15 . . Influence Increases 221 | 30 96 65 30 . Destroy 0b10 Robot/C 120 | . 60 40 20 . Destroy 0b10 Robot/NC 50 | 30 20 . . . Destroy Leader 36 | . 16 10 10 . Destroy Structure 15 | . . 15 . . Influence Decreases 221 | 30 37 124 20 10 Entered New Map 46 | . . 40 . 6 Time Decay 175 | 30 37 84 20 4 Squads Dispatched . | . . . . . Investigation . | . . . . . Extermination . | . . . . . Reinforcement . | . . . . . Assault . | . . . . . Garrison . | . . . . . Intercept . | . . . . . Searches Triggered . | . . . . . Construction Impeded . | . . . . . Haulers Reinforced . | . . . . . Active Scanning Responses . | . . . . . Cargo Convoy Interrupts . | . . . . . Stealth | -11 -10 -10 -10 -8 --------- Run | Yrd Mat Min Sub Mat Distress Signals 1 | . 1 . . . Communications Jammed . | . . . . . Distress Signals . | . . . . . Times Spotted 18 | . 7 5 4 2 Peak Tracking Total 3 | . 3 3 2 2 Tactical Retreats . | . . . . . Traps | -11 -10 -10 -10 -8 ------- Run | Yrd Mat Min Sub Mat Traps Triggered 5 | . 1 . 4 . Indirectly . | . . . . . Trap Hack Attempts . | . . . . . Triggered . | . . . . . Disarmed . | . . . . . Reprogrammed . | . . . . . Reused . | . . . . . Traps Extracted . | . . . . . Installed . | . . . . . Triggered . | . . . . . Machines | -11 -10 -10 -10 -8 ---------- Run | Yrd Mat Min Sub Mat Machines Disabled 1 | . . 1 . . Max in Single Turn 1 | . . 1 . . Machines Repaired . | . . . . . Machines Dismantled . | . . . . . Machines Sabotaged . | . . . . . Overloaded Fab Kills . | . . . . . Hacking | -11 -10 -10 -10 -8 --------- Run | Yrd Mat Min Sub Mat Machines Accessed 1 | . 1 . . . Terminals 1 | . 1 . . . Fabricators . | . . . . . Repair Stations . | . . . . . Recycling Units . | . . . . . Scanalyzers . | . . . . . Garrison Access . | . . . . . Total Hacks 2 | . 2 . . . Successful 1 | . 1 . . . Failed 1 | . 1 . . . Catastrophic . | . . . . . Database Lockouts . | . . . . . Manual . | . . . . . Terminals 2 | . 2 . . . Fabricators . | . . . . . Repair Stations . | . . . . . Recycling Units . | . . . . . Scanalyzers . | . . . . . Garrison Access . | . . . . . Terminal Hacks 1 | . 1 . . . Record 1 | . 1 . . . Fabricator Hacks . | . . . . . Repair Station Hacks . | . . . . . Recycling Unit Hacks . | . . . . . Scanalyzer . | . . . . . Garrison Access Hacks . | . . . . . Unauthorized Hacks . | . . . . . Terminals . | . . . . . Fabricators . | . . . . . Repair Stations . | . . . . . Recycling Units . | . . . . . Scanalyzers . | . . . . . Garrison Access . | . . . . . Data Cores Recovered . | . . . . . Used . | . . . . . Hacking Detections . | . . . . . Full Trace Events . | . . . . . Feedback Events . | . . . . . Feedback Blocked . | . . . . . Robot Schematics Acquired . | . . . . . Robots Built . | . . . . . Authchips . | . . . . . Time . | . . . . . Total Robot Build Rating . | . . . . . Part Schematics Acquired . | . . . . . Parts Built . | . . . . . Authchips . | . . . . . Time . | . . . . . Total Part Build Rating . | . . . . . Part Studies Acquired . | . . . . . Parts Repaired . | . . . . . Time . | . . . . . Parts Recycled . | . . . . . Recycled Matter . | . . . . . Retrieved Matter . | . . . . . Retrieved Components . | . . . . . Parts Scanalyzed . | . . . . . Part Schematics Acquired . | . . . . . Parts Damaged . | . . . . . Bothacking | -11 -10 -10 -10 -8 ------------ Run | Yrd Mat Min Sub Mat Used RIF Installer . | . . . . . Robots Hacked . | . . . . . Non-combat . | . . . . . Combat . | . . . . . Robot Hacks Applied . | . . . . . Relay Couplers Released . | . . . . . Fabnet Peak Effective % . | . . . . . Robots Rewired . | . . . . . Allies Hacked . | . . . . . Hacks Repelled . | . . . . . Allies | -11 -10 -10 -10 -8 -------- Run | Yrd Mat Min Sub Mat Total Allies . | . . . . . Largest Group . | . . . . . Highest-Rated Group . | . . . . . Highest-Rated Ally . | . . . . . Total Orders . | . . . . . Ally Attacks . | . . . . . Total Damage . | . . . . . Kills . | . . . . . Allies Corrupted . | . . . . . Allies Melted . | . . . . . Intel | -11 -10 -10 -10 -8 ------- Run | Yrd Mat Min Sub Mat Active Infowar (turns) 988 | 33 277 257 319 102 Terrain 988 | 33 277 257 319 102 Robot Analysis Total . | . . . . . Derelict Logs Recovered 1 | . . . 1 . Drone Launches . | . . . . . Drone Recoveries . | . . . . . Exploration | -11 -10 -10 -10 -8 ------------- Run | Yrd Mat Min Sub Mat Turns Passed 1101 | 146 277 257 319 102 Spaces Moved 565 | 60 134 147 181 43 Core 5 | 5 . . . . Treads 560 | 55 134 147 181 43 Legs . | . . . . . Wheels . | . . . . . Hover . | . . . . . Flight . | . . . . . Fastest Speed 50 | 50 160 160 160 160 Average Speed 159 | 150 160 160 160 160 Slowest Speed 160 | 160 160 160 160 160 Overloaded Moves . | . . . . . Propulsion Burnouts . | . . . . . Robots Hopped . | . . . . . Potential Cave-ins . | . . . . . Cave-ins Triggered . | . . . . . Exploration Rate (%) 21 | 3 35 47 16 5 Regions Visited 4 Branch Regions 2 Pre-discovered Areas . | . . . . . Known Exits Taken . | . . . . . Unknown Exits Taken 4 | 1 1 1 1 . Scrap Searched 1 | . . 1 . . Spaces Dug . | . . . . . Terrain Destroyed 40 | . . 13 27 . Melee . | . . . . . Projectile . | . . . . . AOE 40 | . . 13 27 . Terrain Rammed . | . . . . . Walls Destroyed . | . . . . . Machines Disabled . | . . . . . Actions | -11 -10 -10 -10 -8 --------- Run | Yrd Mat Min Sub Mat Total 678 | 89 157 161 197 74 Wait 21 | . . . . 21 Move 561 | 59 133 146 180 43 Hop . | . . . . . Pick Up 17 | 8 2 4 2 1 Fast Attach . | . . . . . Attach 14 | 7 . 2 1 4 Detach . | . . . . . Swap 3 | . . 1 2 . Drop 7 | . . 3 3 1 Fire 50 | 15 22 5 8 . Melee . | . . . . . Ram . | . . . . . Kick . | . . . . . Crush 5 | . . . 1 4 Escape Stasis . | . . . . . Rewire . | . . . . . Trap . | . . . . . Miscellaneous . | . . . . . Route ------- -11/Scrapyard -10/Materials -10/Mines -10/Subcaves -8/Materials History --------- Turn | Location | Event 6 | -11/Scrapyard | Discovered new exit (range 16) 147 | -11/Scrapyard | Entered Materials 220 | -10/Materials | Discovered new exit (range 11) 300 | -10/Materials | Build established: Mutant 424 | -10/Materials | Entered Mines 436 | -10/Mines | Met a Derelict bent on vengeance 584 | -10/Mines | Joined a pair of Derelicts in attacking an 0b10 outpost 652 | -10/Mines | Discovered new exit (range 9) 681 | -10/Mines | Entered Subcaves 944 | -10/Subcaves | Core integrity fell below 50% 989 | -10/Subcaves | Discovered new exit (range 7) 992 | -10/Subcaves | Learned Materials security intel 1000 | -10/Subcaves | Entered Materials 1000 | -8/Materials | Evolved 4 slots: Power x1, Utility x2, Weapon x1 1102 | -8/Materials | Self-destructed Last Messages --------------- EXIT=FOUND Acquired derelict log, extracted data. Data stored: Materials security intel. System corrupted: Matter fused (-8). PARAMETERS=POWER+1,UTILITY+2,WEAPON+1 LOCATION=UNKNOWN GOAL=ESCAPE Dropped Lgt. Treads. Loading Materials security intel (x10)... R-06 Scavenger collects Lgt. Treads. Slug penetrates Wall. Acquired Particle Charger. Slug penetrates Wall. Penetrated by Slug. Slammed into H-55 Commando. Penetrated by Slug. Broken Sub. Machine Gun destroyed. Slammed into H-55 Commando. Penetrated by Slug. Slug penetrates Recycling Unit. Map ----- +----------------------------------------------------+ | ???????????????????????????????? | | ???????????????????????????????? | | ???????????????????????????????? | | ?????????????????????? ????????? | | ???????????????????????????????? | | ?????????????#?????????????????? | | ?????????????????????#???#?????? | | ???????????????????????????????? | | ???????????????????????????????? | | ????? ?????????????????????????? | | ????? ??????????#?????????????? | | ????# ????????????????? ???????? | | ????# ?????????????????????????? | | ???#? ?????????#??????????? ???? | | ??#?? ????##?????#?????????????? | | ??#?? ????#??############## ""?? | | #???# ##?????# ???? | | ????# #??????# #?????????? | | ????# #??????# #??#??????? | | ????# ############ #???? ????? | | ????# ## """ # #?????????? | | ????# ## """ # #?????????? | | ????# ## """ + #?????????? | | ????# ## # #???#?????? | | ??### ## "" # #?????????? | | ????# @h"Y # #?????????? | | ???## ## "" # #? ????#??? | | ????# ## # #??? ?????? | | ????# ############ #?????????? | | ????# #??????????# +?????????? | | ????# #??????????# #?????????? | | ????# #????#?????# #?????????? | | ????# #????????#?# #?????????? | | ????# #?????????# ?????????? | | ????# #???????? ? ?????????? | | ???##"#?????????? " ??#??????? | | ???? ?????????? ?????????? | | ????" ??????????? ? ??????????? | | ????" ????????????????????????? | | ???? ? ??????????????????????? | | ????? ????????????????????????? | | ????? ????????????????????????? | | ????? ????????????????????????? | | ????? ????????????????????????? | | ???????????????????????????????? | | ???????????????????????????????? | | ???????????????????????????????? | | ???????????????????????????????? | | ???????????????????????????????? | | ???????????????????????????????? | +----------------------------------------------------+ Best States ------------- Heat Dissipation 31 Energy Generation 12 Energy Capacity 265 Matter Stores 300 Matter Capacity 300 Sight Range 16 Terrain Scan Range 16 Terrain Scan Density 10 Resistance: KI 20 Resistance: TH 20 Resistance: EX 20 Resistance: EM 20 Resistance: I 20 Resistance: S 20 Resistance: P 20 Core Shielding 20 Evasion (%) 40 Recoil Reduction 2 Offensive Hacking 10 Item Schematics ----------------- None Robot Schematics ------------------ None Fabricated ------------ Nothing Repaired ---------- Nothing Studied --------- None Alien Tech Used ----------------- None Achievements -------------- None Challenges ------------ None Game ------ Seed LobotomyUltimateDoomcannon Manual? 0 Play Time 00:11:52 Cumulative 5.0 hours Start 2026.02.22 @ 10:34:58 End 2026.02.22 @ 11:05:33 Sessions 1 Manual Loads 0 Difficulty Adventurer Special Mode None Game No. 10 Rogue 0 Adventurer 10 Explorer 0 Win Type - Total 0 Types 0/0/0/0/0/0/0/0/0/0 Lore% 2 Gallery% 11 Achievement% 10 Wizard Run 0 Options --------- Layout 0 ASCII 0 Keyboard 0 Movement Mouse Keybinds 0 Fullscreen 2 Font 32/Smallcaps Map View 88x55 Zoom Use 0% Tactical HUD 0 Map Filters NONE Filters NONE Steam 1 RUN: 76576194-f553-4b74-b649-912f3fdb3099